[Event "Titled Tuesday Blitz April 11 Early 2023"]
[White "Bharath Subramaniyam H"]
[Black "Chernomordik, Pavel"]
[WhiteFideId "46634827"]
[BlackFideId "2804530"]
[WhiteElo "2395"]
[BlackElo "2193"]
[Result "1-0"]
[Round "01"]
[TimeControl "180+2"]
[Date "2023.04.11"]
[WhiteClock "0:00:50"]
[BlackClock "0:00:03"]

1. e4 {[%clk 0:02:58]}  g6 {[%clk 0:02:59]} 2. d4 {[%clk 0:02:57]}  Bg7 {[%clk 0:02:58]} 3. Nc3 {[%clk 0:02:58]}  d6 {[%clk 0:02:58]} 4. f4 {[%clk 0:02:58]}  a6 {[%clk 0:02:58]} 5. Nf3 {[%clk 0:02:58]}  b5 {[%clk 0:02:58]} 6. Bd3 {[%clk 0:02:58]}  Nd7 {[%clk 0:02:57]} 7. O-O {[%clk 0:02:58]}  c5 {[%clk 0:02:56]} 8. d5 {[%clk 0:02:54]}  c4 {[%clk 0:02:52]} 9. Be2 {[%clk 0:02:55]}  Qb6+ {[%clk 0:02:50]} 10. Kh1 {[%clk 0:02:55]}  Ngf6 {[%clk 0:02:49]} 11. a4 {[%clk 0:02:51]}  b4 {[%clk 0:02:39]} 12. a5 {[%clk 0:02:51]}  Qa7 {[%clk 0:02:35]} 13. Na4 {[%clk 0:02:52]}  Nxe4 {[%clk 0:02:34]} 14. Qe1 {[%clk 0:02:52]}  Ndf6 {[%clk 0:02:10]} 15. Bxc4 {[%clk 0:02:49]}  O-O {[%clk 0:02:06]} 16. Nb6 {[%clk 0:02:47]}  Rb8 {[%clk 0:02:05]} 17. Qxb4 {[%clk 0:02:37]}  Ng4 {[%clk 0:01:51]} 18. Qe1 {[%clk 0:02:33]}  Bf5 {[%clk 0:01:43]} 19. h3 {[%clk 0:02:31]}  Ngf6 {[%clk 0:01:35]} 20. Bd3 {[%clk 0:02:22]}  Nc5 {[%clk 0:01:28]} 21. Bxf5 {[%clk 0:02:21]}  gxf5 {[%clk 0:01:27]} 22. Be3 {[%clk 0:02:20]}  Nfe4 {[%clk 0:01:25]} 23. Nd4 {[%clk 0:02:18]}  Bxd4 {[%clk 0:01:03]} 24. Bxd4 {[%clk 0:02:19]}  Nd7 {[%clk 0:01:03]} 25. Ra3 {[%clk 0:02:16]}  f6 {[%clk 0:00:54]} 26. g4 {[%clk 0:01:59]}  Nxb6 {[%clk 0:00:50]} 27. axb6 {[%clk 0:01:53]}  Qd7 {[%clk 0:00:50]} 28. Re3 {[%clk 0:01:46]}  Rf7 {[%clk 0:00:39]} 29. gxf5 {[%clk 0:01:45]}  Nc5 {[%clk 0:00:37]} 30. Rg1+ {[%clk 0:01:10]}  Kh8 {[%clk 0:00:35]} 31. Rxe7 {[%clk 0:00:56]}  Qxf5 {[%clk 0:00:31]} 32. Re8+ {[%clk 0:00:55]}  Rf8 {[%clk 0:00:29]} 33. Qg3 {[%clk 0:00:56]}  Qg6 {[%clk 0:00:21]} 34. Qxg6 {[%clk 0:00:53]}  hxg6 {[%clk 0:00:21]} 35. Rxf8+ {[%clk 0:00:54]}  Rxf8 {[%clk 0:00:20]} 36. Rxg6 {[%clk 0:00:55]}  Nd7 {[%clk 0:00:19]} 37. b7 {[%clk 0:00:51]}  Kh7 {[%clk 0:00:17]} 38. Rg3 {[%clk 0:00:52]}  Rb8 {[%clk 0:00:17]} 39. Rb3 {[%clk 0:00:52]}  Kg6 {[%clk 0:00:15]} 40. Ba7 {[%clk 0:00:52]}  Re8 {[%clk 0:00:14]} 41. b8=Q {[%clk 0:00:52]}  Nxb8 {[%clk 0:00:14]} 42. Bxb8 {[%clk 0:00:52]}  Re1+ {[%clk 0:00:12]} 43. Kg2 {[%clk 0:00:53]}  Re2+ {[%clk 0:00:13]} 44. Kf3 {[%clk 0:00:54]}  Rxc2 {[%clk 0:00:14]} 45. Bxd6 {[%clk 0:00:54]}  Kf5 {[%clk 0:00:13]} 46. Ba3 {[%clk 0:00:54]}  Rd2 {[%clk 0:00:11]} 47. d6 {[%clk 0:00:54]}  Ke6 {[%clk 0:00:09]} 48. Ke3 {[%clk 0:00:54]}  Rh2 {[%clk 0:00:09]} 49. Kd4 {[%clk 0:00:52]}  Rd2+ {[%clk 0:00:06]} 50. Rd3 {[%clk 0:00:53]}  Rf2 {[%clk 0:00:03]} 51. Kc5 {[%clk 0:00:50]} 1-0


[Site "https://www.chess.com"]

[Event "Titled Tuesday Blitz April 11 Early 2023"]
[White "Durarbayli, Vasif"]
[Black "Dudzinski, Pawel"]
[WhiteFideId "13402935"]
[BlackFideId "1117890"]
[WhiteElo "2551"]
[BlackElo "2099"]
[Result "1-0"]
[Round "01"]
[TimeControl "180+2"]
[Date "2023.04.11"]
[WhiteClock "0:00:31"]
[BlackClock "0:00:23"]

1. e4 {[%clk 0:03:00]}  c6 {[%clk 0:02:58]} 2. d4 {[%clk 0:03:00]}  d5 {[%clk 0:02:59]} 3. exd5 {[%clk 0:03:01]}  cxd5 {[%clk 0:03:00]} 4. c4 {[%clk 0:03:01]}  Nf6 {[%clk 0:03:00]} 5. Nc3 {[%clk 0:03:02]}  g6 {[%clk 0:02:58]} 6. cxd5 {[%clk 0:03:02]}  Bg7 {[%clk 0:02:57]} 7. Bc4 {[%clk 0:03:02]}  O-O {[%clk 0:02:58]} 8. Nge2 {[%clk 0:03:03]}  Nbd7 {[%clk 0:02:54]} 9. Nf4 {[%clk 0:03:02]}  Nb6 {[%clk 0:02:54]} 10. Bb3 {[%clk 0:03:02]}  Bg4 {[%clk 0:02:19]} 11. f3 {[%clk 0:03:00]}  Bf5 {[%clk 0:02:20]} 12. O-O {[%clk 0:02:59]}  g5 {[%clk 0:02:16]} 13. Nfe2 {[%clk 0:02:58]}  h6 {[%clk 0:02:17]} 14. f4 {[%clk 0:02:33]}  g4 {[%clk 0:02:16]} 15. Ng3 {[%clk 0:02:33]}  Qd7 {[%clk 0:02:17]} 16. d6 {[%clk 0:02:17]}  exd6 {[%clk 0:02:15]} 17. d5 {[%clk 0:02:16]}  Rfe8 {[%clk 0:01:59]} 18. a4 {[%clk 0:02:08]}  a5 {[%clk 0:01:57]} 19. Ra3 {[%clk 0:01:42]}  Rac8 {[%clk 0:01:51]} 20. Nb5 {[%clk 0:01:31]}  Nc4 {[%clk 0:01:41]} 21. Bxc4 {[%clk 0:01:26]}  Rxc4 {[%clk 0:01:41]} 22. Nxf5 {[%clk 0:01:26]}  Qxf5 {[%clk 0:01:41]} 23. Nxd6 {[%clk 0:01:25]}  Qc2 {[%clk 0:01:23]} 24. Qxc2 {[%clk 0:01:18]}  Rxc2 {[%clk 0:01:22]} 25. Nxe8 {[%clk 0:01:18]}  Nxe8 {[%clk 0:01:23]} 26. f5 {[%clk 0:01:05]}  Bd4+ {[%clk 0:01:17]} 27. Be3 {[%clk 0:01:01]}  Bxb2 {[%clk 0:01:17]} 28. Rb3 {[%clk 0:01:00]}  Nd6 {[%clk 0:01:18]} 29. Rf2 {[%clk 0:00:49]}  Rxf2 {[%clk 0:00:53]} 30. Bxf2 {[%clk 0:00:50]}  Be5 {[%clk 0:00:54]} 31. Bc5 {[%clk 0:00:45]}  Nxf5 {[%clk 0:00:46]} 32. Rxb7 {[%clk 0:00:44]}  g3 {[%clk 0:00:41]} 33. hxg3 {[%clk 0:00:43]}  Bxg3 {[%clk 0:00:41]} 34. Ra7 {[%clk 0:00:38]}  Kg7 {[%clk 0:00:29]} 35. Rxa5 {[%clk 0:00:35]}  Kf6 {[%clk 0:00:30]} 36. Rb5 {[%clk 0:00:33]}  Ke5 {[%clk 0:00:29]} 37. a5 {[%clk 0:00:33]}  Kxd5 {[%clk 0:00:29]} 38. Bf2+ {[%clk 0:00:32]}  Kc4 {[%clk 0:00:26]} 39. Rxf5 {[%clk 0:00:33]}  Bd6 {[%clk 0:00:23]} 40. a6 {[%clk 0:00:31]} 1-0


[Site "https://www.chess.com"]

[Event "Titled Tuesday Blitz April 11 Early 2023"]
[White "Vovk, Orest"]
[Black "Khanin, Semen"]
[WhiteFideId "14113490"]
[BlackFideId "4111990"]
[WhiteElo "2215"]
[BlackElo "2458"]
[Result "1-0"]
[Round "01"]
[TimeControl "180+2"]
[Date "2023.04.11"]
[WhiteClock "0:00:04"]
[BlackClock "0:00:57"]

1. h4 {[%clk 0:02:24]}  d5 {[%clk 0:02:57]} 2. h5 {[%clk 0:02:20]}  e5 {[%clk 0:02:57]} 3. h6 {[%clk 0:02:20]}  Nxh6 {[%clk 0:02:57]} 4. d4 {[%clk 0:02:21]}  e4 {[%clk 0:02:54]} 5. Bxh6 {[%clk 0:02:20]}  gxh6 {[%clk 0:02:55]} 6. e3 {[%clk 0:02:21]}  Rg8 {[%clk 0:02:47]} 7. c4 {[%clk 0:02:19]}  c6 {[%clk 0:02:47]} 8. Qb3 {[%clk 0:02:18]}  Qb6 {[%clk 0:02:42]} 9. Nc3 {[%clk 0:02:17]}  Qxb3 {[%clk 0:02:34]} 10. axb3 {[%clk 0:02:17]}  Bb4 {[%clk 0:02:35]} 11. Rxh6 {[%clk 0:02:11]}  Bf5 {[%clk 0:02:31]} 12. Rh5 {[%clk 0:02:08]}  Bg6 {[%clk 0:02:20]} 13. Re5+ {[%clk 0:02:08]}  Kd7 {[%clk 0:02:20]} 14. cxd5 {[%clk 0:01:33]}  f6 {[%clk 0:02:20]} 15. Re6 {[%clk 0:01:09]}  cxd5 {[%clk 0:02:09]} 16. Rxf6 {[%clk 0:01:08]}  Nc6 {[%clk 0:02:02]} 17. O-O-O {[%clk 0:00:46]}  Be7 {[%clk 0:01:54]} 18. Nxd5 {[%clk 0:00:35]}  Rgc8 {[%clk 0:01:43]} 19. Rf4 {[%clk 0:00:16]}  Nb4+ {[%clk 0:01:40]} 20. Nc3 {[%clk 0:00:15]}  Na2+ {[%clk 0:01:39]} 21. Kd2 {[%clk 0:00:12]}  Bb4 {[%clk 0:01:37]} 22. Ne2 {[%clk 0:00:12]}  a5 {[%clk 0:01:28]} 23. Ra1 {[%clk 0:00:11]}  Nxc3 {[%clk 0:01:28]} 24. bxc3 {[%clk 0:00:11]}  Bd6 {[%clk 0:01:29]} 25. Rh4 {[%clk 0:00:09]}  b5 {[%clk 0:01:29]} 26. g3 {[%clk 0:00:08]}  a4 {[%clk 0:01:29]} 27. Bh3+ {[%clk 0:00:05]}  Ke7 {[%clk 0:01:28]} 28. Bxc8 {[%clk 0:00:06]}  Rxc8 {[%clk 0:01:28]} 29. bxa4 {[%clk 0:00:06]}  b4 {[%clk 0:01:29]} 30. cxb4 {[%clk 0:00:04]}  Bxb4+ {[%clk 0:01:29]} 31. Kd1 {[%clk 0:00:05]}  Bf7 {[%clk 0:01:30]} 32. Rxh7 {[%clk 0:00:04]}  Kf6 {[%clk 0:01:29]} 33. Rxf7+ {[%clk 0:00:04]}  Kxf7 {[%clk 0:01:29]} 34. Nf4 {[%clk 0:00:04]}  Rh8 {[%clk 0:01:27]} 35. Ke2 {[%clk 0:00:03]}  Rc8 {[%clk 0:01:26]} 36. a5 {[%clk 0:00:04]}  Rc2+ {[%clk 0:01:26]} 37. Kf1 {[%clk 0:00:04]}  Rc8 {[%clk 0:01:24]} 38. Kg2 {[%clk 0:00:04]}  Ra8 {[%clk 0:01:23]} 39. a6 {[%clk 0:00:05]}  Ra7 {[%clk 0:01:23]} 40. g4 {[%clk 0:00:05]}  Bd6 {[%clk 0:01:23]} 41. Nd5 {[%clk 0:00:04]}  Ke6 {[%clk 0:01:23]} 42. Nb4 {[%clk 0:00:05]}  Bxb4 {[%clk 0:01:22]} 43. Ra4 {[%clk 0:00:04]}  Bd6 {[%clk 0:01:22]} 44. f3 {[%clk 0:00:05]}  Kd5 {[%clk 0:01:22]} 45. Ra5+ {[%clk 0:00:04]}  Kc4 {[%clk 0:01:22]} 46. fxe4 {[%clk 0:00:05]}  Kd3 {[%clk 0:01:22]} 47. Kf3 {[%clk 0:00:04]}  Rf7+ {[%clk 0:01:22]} 48. Kg2 {[%clk 0:00:04]}  Bb8 {[%clk 0:01:17]} 49. e5 {[%clk 0:00:04]}  Kxe3 {[%clk 0:01:17]} 50. e6 {[%clk 0:00:05]}  Rf2+ {[%clk 0:01:16]} 51. Kg1 {[%clk 0:00:05]}  Bh2+ {[%clk 0:01:11]} 52. Kh1 {[%clk 0:00:05]}  Bf4 {[%clk 0:01:06]} 53. e7 {[%clk 0:00:04]}  Kf3 {[%clk 0:01:07]} 54. Ra3+ {[%clk 0:00:03]}  Kxg4 {[%clk 0:00:58]} 55. e8=Q {[%clk 0:00:03]}  Rh2+ {[%clk 0:00:58]} 56. Kg1 {[%clk 0:00:03]}  Rb2 {[%clk 0:00:58]} 57. Qg6+ {[%clk 0:00:03]}  Kh4 {[%clk 0:00:57]} 58. Qf6+ {[%clk 0:00:03]}  Kg4 {[%clk 0:00:57]} 59. Qxf4+ {[%clk 0:00:03]}  Kxf4 {[%clk 0:00:57]} 60. a7 {[%clk 0:00:04]} 1-0


[Site "https://www.chess.com"]

[Event "Titled Tuesday Blitz April 11 Early 2023"]
[White "Rios Escobar, Adan"]
[Black "Lobanov, Sergei"]
[WhiteFideId "3403645"]
[BlackFideId "24183750"]
[WhiteElo "2467"]
[BlackElo "2489"]
[Result "0-1"]
[Round "01"]
[TimeControl "180+2"]
[Date "2023.04.11"]
[WhiteClock "0:00:02"]
[BlackClock "0:01:01"]

1. d4 {[%clk 0:02:58]}  Nf6 {[%clk 0:03:00]} 2. g3 {[%clk 0:02:58]}  d5 {[%clk 0:02:59]} 3. Nf3 {[%clk 0:02:57]}  e6 {[%clk 0:02:55]} 4. Bg2 {[%clk 0:02:56]}  Be7 {[%clk 0:02:55]} 5. c4 {[%clk 0:02:57]}  O-O {[%clk 0:02:55]} 6. O-O {[%clk 0:02:57]}  dxc4 {[%clk 0:02:56]} 7. Qc2 {[%clk 0:02:58]}  a6 {[%clk 0:02:56]} 8. a4 {[%clk 0:02:58]}  Nc6 {[%clk 0:02:57]} 9. Qxc4 {[%clk 0:02:53]}  Qd5 {[%clk 0:02:57]} 10. Nbd2 {[%clk 0:02:52]}  Rd8 {[%clk 0:02:56]} 11. e3 {[%clk 0:02:49]}  Qh5 {[%clk 0:02:56]} 12. h3 {[%clk 0:02:45]}  g5 {[%clk 0:02:54]} 13. g4 {[%clk 0:02:41]}  Qg6 {[%clk 0:02:54]} 14. a5 {[%clk 0:02:33]}  h5 {[%clk 0:02:43]} 15. Ne5 {[%clk 0:02:27]}  Nxe5 {[%clk 0:02:39]} 16. dxe5 {[%clk 0:02:28]}  Nd5 {[%clk 0:02:34]} 17. Nf3 {[%clk 0:02:05]}  Bd7 {[%clk 0:02:31]} 18. Rd1 {[%clk 0:01:34]}  Bb5 {[%clk 0:02:29]} 19. Qb3 {[%clk 0:01:30]}  c5 {[%clk 0:02:20]} 20. Bd2 {[%clk 0:01:12]}  hxg4 {[%clk 0:02:16]} 21. hxg4 {[%clk 0:01:11]}  c4 {[%clk 0:02:14]} 22. Qa2 {[%clk 0:01:09]}  Qe4 {[%clk 0:02:15]} 23. Nh2 {[%clk 0:00:55]}  Qxe5 {[%clk 0:02:14]} 24. Bxd5 {[%clk 0:00:48]}  Qxd5 {[%clk 0:01:57]} 25. Bc3 {[%clk 0:00:48]}  Qe4 {[%clk 0:01:30]} 26. Re1 {[%clk 0:00:32]}  Bd6 {[%clk 0:01:29]} 27. b3 {[%clk 0:00:15]}  cxb3 {[%clk 0:01:20]} 28. Qb2 {[%clk 0:00:13]}  Bc6 {[%clk 0:01:13]} 29. f3 {[%clk 0:00:12]}  Qc2 {[%clk 0:01:08]} 30. Re2 {[%clk 0:00:08]}  Qxb2 {[%clk 0:01:04]} 31. Rxb2 {[%clk 0:00:08]}  Rac8 {[%clk 0:01:00]} 32. Rxb3 {[%clk 0:00:08]}  Bd5 {[%clk 0:01:00]} 33. Rab1 {[%clk 0:00:05]}  Bxb3 {[%clk 0:00:58]} 34. Rxb3 {[%clk 0:00:06]}  Bxh2+ {[%clk 0:00:59]} 35. Kxh2 {[%clk 0:00:06]}  Rd3 {[%clk 0:00:59]} 36. Rxb7 {[%clk 0:00:01]}  Rcxc3 {[%clk 0:00:59]} 37. f4 {[%clk 0:00:02]}  Rxe3 {[%clk 0:01:00]} 38. fxg5 {[%clk 0:00:02]}  Re2+ {[%clk 0:01:00]} 39. Kg1 {[%clk 0:00:02]}  Rc1# {[%clk 0:01:01]} 0-1


[Site "https://www.chess.com"]

[Event "Titled Tuesday Blitz April 11 Early 2023"]
[White "Costachi, Mihnea"]
[Black "Adelman, Charles"]
[WhiteFideId "1217518"]
[BlackFideId "2003597"]
[WhiteElo "2456"]
[BlackElo "2461"]
[Result "1-0"]
[Round "01"]
[TimeControl "180+2"]
[Date "2023.04.11"]
[WhiteClock "0:00:23"]
[BlackClock "0:00:04"]

1. e4 {[%clk 0:03:00]}  Nf6 {[%clk 0:03:00]} 2. Nc3 {[%clk 0:02:59]}  d6 {[%clk 0:03:00]} 3. d4 {[%clk 0:02:59]}  Nbd7 {[%clk 0:03:00]} 4. Nf3 {[%clk 0:02:59]}  e5 {[%clk 0:03:00]} 5. Be2 {[%clk 0:03:00]}  Be7 {[%clk 0:03:00]} 6. O-O {[%clk 0:03:00]}  O-O {[%clk 0:03:01]} 7. h3 {[%clk 0:03:01]}  c6 {[%clk 0:03:01]} 8. Be3 {[%clk 0:03:01]}  Qe8 {[%clk 0:02:59]} 9. a4 {[%clk 0:03:01]}  a5 {[%clk 0:02:59]} 10. Re1 {[%clk 0:03:00]}  Bd8 {[%clk 0:02:58]} 11. dxe5 {[%clk 0:02:57]}  dxe5 {[%clk 0:02:57]} 12. Qd6 {[%clk 0:02:46]}  Qe7 {[%clk 0:02:53]} 13. Qd3 {[%clk 0:02:40]}  Bc7 {[%clk 0:02:51]} 14. Red1 {[%clk 0:02:38]}  Nc5 {[%clk 0:02:51]} 15. Qc4 {[%clk 0:02:37]}  Ne6 {[%clk 0:02:35]} 16. Nh4 {[%clk 0:02:30]}  Nf4 {[%clk 0:02:35]} 17. Nf5 {[%clk 0:02:24]}  Bxf5 {[%clk 0:02:31]} 18. exf5 {[%clk 0:02:25]}  Nxe2+ {[%clk 0:02:28]} 19. Qxe2 {[%clk 0:02:25]}  e4 {[%clk 0:02:28]} 20. Bd4 {[%clk 0:02:09]}  Rad8 {[%clk 0:02:27]} 21. Bxf6 {[%clk 0:02:08]}  Qxf6 {[%clk 0:02:27]} 22. Qxe4 {[%clk 0:02:07]}  Be5 {[%clk 0:02:20]} 23. Rxd8 {[%clk 0:02:00]}  Rxd8 {[%clk 0:02:19]} 24. Re1 {[%clk 0:02:00]}  Bd6 {[%clk 0:02:04]} 25. Qg4 {[%clk 0:01:40]}  h6 {[%clk 0:01:41]} 26. Rd1 {[%clk 0:01:27]}  Qe5 {[%clk 0:01:29]} 27. g3 {[%clk 0:01:26]}  Re8 {[%clk 0:01:23]} 28. f6 {[%clk 0:01:19]}  g6 {[%clk 0:01:06]} 29. Qd7 {[%clk 0:01:02]}  Bc5 {[%clk 0:00:50]} 30. Kg2 {[%clk 0:01:03]}  h5 {[%clk 0:00:34]} 31. h4 {[%clk 0:00:58]}  Rf8 {[%clk 0:00:16]} 32. Qxb7 {[%clk 0:00:51]}  Qxf6 {[%clk 0:00:16]} 33. Ne4 {[%clk 0:00:52]}  Qe5 {[%clk 0:00:15]} 34. Qxc6 {[%clk 0:00:50]}  Bd4 {[%clk 0:00:13]} 35. c3 {[%clk 0:00:47]}  Ba7 {[%clk 0:00:13]} 36. Qd5 {[%clk 0:00:46]}  Qe7 {[%clk 0:00:11]} 37. Ng5 {[%clk 0:00:40]}  Re8 {[%clk 0:00:11]} 38. Qd7 {[%clk 0:00:37]}  Qxd7 {[%clk 0:00:09]} 39. Rxd7 {[%clk 0:00:38]}  Bc5 {[%clk 0:00:05]} 40. Kf3 {[%clk 0:00:30]}  Re1 {[%clk 0:00:04]} 41. Ne4 {[%clk 0:00:23]}  Bb6 {[%clk 0:00:04]} 42. Rb7 {[%clk 0:00:23]} 1-0


[Site "https://www.chess.com"]

[Event "Titled Tuesday Blitz April 11 Early 2023"]
[White "Maxfan2008"]
[Black "Ashraf, Artin"]
[BlackFideId "22514805"]
[WhiteElo "2460"]
[BlackElo "2188"]
[Result "0-1"]
[Round "01"]
[TimeControl "180+2"]
[Date "2023.04.11"]
[WhiteClock "0:00:08"]
[BlackClock "0:00:07"]

1. d4 {[%clk 0:02:52]}  Nf6 {[%clk 0:02:59]} 2. c4 {[%clk 0:02:51]}  c5 {[%clk 0:02:55]} 3. d5 {[%clk 0:02:51]}  e5 {[%clk 0:02:54]} 4. Nc3 {[%clk 0:02:49]}  d6 {[%clk 0:02:53]} 5. e4 {[%clk 0:02:46]}  g6 {[%clk 0:02:45]} 6. g3 {[%clk 0:02:46]}  Bg7 {[%clk 0:02:45]} 7. Bg2 {[%clk 0:02:45]}  h5 {[%clk 0:02:24]} 8. h3 {[%clk 0:02:44]}  Bh6 {[%clk 0:02:16]} 9. Nge2 {[%clk 0:02:40]}  Bxc1 {[%clk 0:02:13]} 10. Qxc1 {[%clk 0:02:41]}  h4 {[%clk 0:02:13]} 11. g4 {[%clk 0:02:40]}  Nh7 {[%clk 0:02:10]} 12. Qh6 {[%clk 0:02:22]}  Qf6 {[%clk 0:01:37]} 13. Qe3 {[%clk 0:01:33]}  Nd7 {[%clk 0:01:34]} 14. O-O {[%clk 0:01:26]}  a6 {[%clk 0:01:30]} 15. f4 {[%clk 0:01:26]}  exf4 {[%clk 0:01:28]} 16. Rxf4 {[%clk 0:01:26]}  Qe7 {[%clk 0:01:24]} 17. Raf1 {[%clk 0:01:26]}  Ne5 {[%clk 0:01:23]} 18. b3 {[%clk 0:01:24]}  Bd7 {[%clk 0:01:21]} 19. Nc1 {[%clk 0:01:21]}  O-O {[%clk 0:00:41]} 20. Nd3 {[%clk 0:01:13]}  f6 {[%clk 0:00:40]} 21. Ne2 {[%clk 0:01:07]}  b5 {[%clk 0:00:37]} 22. R4f2 {[%clk 0:01:02]}  bxc4 {[%clk 0:00:22]} 23. bxc4 {[%clk 0:01:02]}  Nxc4 {[%clk 0:00:19]} 24. Qh6 {[%clk 0:01:02]}  Qg7 {[%clk 0:00:15]} 25. Qxh4 {[%clk 0:01:00]}  Ng5 {[%clk 0:00:12]} 26. Qg3 {[%clk 0:00:55]}  Nd2 {[%clk 0:00:11]} 27. Qxd6 {[%clk 0:00:36]}  Ndxe4 {[%clk 0:00:11]} 28. Qc7 {[%clk 0:00:26]}  Nxf2 {[%clk 0:00:11]} 29. Rxf2 {[%clk 0:00:26]}  Rac8 {[%clk 0:00:12]} 30. Qa7 {[%clk 0:00:26]}  c4 {[%clk 0:00:12]} 31. Nc5 {[%clk 0:00:26]}  Bb5 {[%clk 0:00:11]} 32. Qb6 {[%clk 0:00:21]}  Qc7 {[%clk 0:00:09]} 33. Qxc7 {[%clk 0:00:13]}  Rxc7 {[%clk 0:00:10]} 34. Ne6 {[%clk 0:00:12]}  Nxe6 {[%clk 0:00:10]} 35. dxe6 {[%clk 0:00:13]}  Kg7 {[%clk 0:00:11]} 36. Nc3 {[%clk 0:00:13]}  Rd8 {[%clk 0:00:09]} 37. Nd5 {[%clk 0:00:13]}  Rc5 {[%clk 0:00:07]} 38. Rxf6 {[%clk 0:00:12]}  c3 {[%clk 0:00:06]} 39. Rf7+ {[%clk 0:00:12]}  Kh6 {[%clk 0:00:06]} 40. e7 {[%clk 0:00:13]}  Rdxd5 {[%clk 0:00:05]} 41. Bxd5 {[%clk 0:00:09]}  Rxd5 {[%clk 0:00:06]} 42. h4 {[%clk 0:00:08]}  c2 {[%clk 0:00:06]} 43. g5+ {[%clk 0:00:09]}  Kh5 {[%clk 0:00:06]} 44. Rh7+ {[%clk 0:00:08]}  Kg4 {[%clk 0:00:07]} 0-1


[Site "https://www.chess.com"]

[Event "Titled Tuesday Blitz April 11 Early 2023"]
[White "Real_OceanStorm"]
[Black "Yosha_Iglesias"]
[WhiteElo "2804"]
[BlackElo "2458"]
[Result "1-0"]
[Round "01"]
[TimeControl "180+2"]
[Date "2023.04.11"]
[WhiteClock "0:00:13"]
[BlackClock "0:00:29"]

1. e4 {[%clk 0:02:55]}  c5 {[%clk 0:02:59]} 2. Nf3 {[%clk 0:02:55]}  d6 {[%clk 0:02:59]} 3. c3 {[%clk 0:02:55]}  Nf6 {[%clk 0:02:59]} 4. Qc2 {[%clk 0:02:53]}  Qc7 {[%clk 0:02:56]} 5. d4 {[%clk 0:02:52]}  cxd4 {[%clk 0:02:54]} 6. Nxd4 {[%clk 0:02:52]}  a6 {[%clk 0:02:38]} 7. Nf3 {[%clk 0:02:47]}  Nc6 {[%clk 0:02:35]} 8. Bc4 {[%clk 0:02:47]}  e6 {[%clk 0:02:33]} 9. O-O {[%clk 0:02:40]}  Be7 {[%clk 0:02:29]} 10. Bf4 {[%clk 0:02:37]}  O-O {[%clk 0:02:18]} 11. a4 {[%clk 0:02:07]}  h6 {[%clk 0:01:53]} 12. Rd1 {[%clk 0:02:02]}  e5 {[%clk 0:01:48]} 13. Be3 {[%clk 0:02:02]}  Bg4 {[%clk 0:01:21]} 14. Nbd2 {[%clk 0:02:01]}  Rac8 {[%clk 0:01:10]} 15. b4 {[%clk 0:01:04]}  Bxf3 {[%clk 0:01:06]} 16. gxf3 {[%clk 0:00:58]}  Nxb4 {[%clk 0:00:49]} 17. cxb4 {[%clk 0:00:58]}  b5 {[%clk 0:00:50]} 18. axb5 {[%clk 0:00:58]}  axb5 {[%clk 0:00:50]} 19. Ra7 {[%clk 0:00:57]}  Qc6 {[%clk 0:00:49]} 20. Rxe7 {[%clk 0:00:55]}  bxc4 {[%clk 0:00:49]} 21. Qc3 {[%clk 0:00:39]}  d5 {[%clk 0:00:48]} 22. Bc5 {[%clk 0:00:34]}  dxe4 {[%clk 0:00:42]} 23. Rxe5 {[%clk 0:00:16]}  exf3 {[%clk 0:00:39]} 24. Bxf8 {[%clk 0:00:15]}  Kxf8 {[%clk 0:00:33]} 25. Rc5 {[%clk 0:00:13]}  Qb7 {[%clk 0:00:29]} 26. Qxf3 {[%clk 0:00:13]} 1-0


[Site "https://www.chess.com"]

[Event "Titled Tuesday Blitz April 11 Early 2023"]
[White "Sowul, Bartosz"]
[Black "Timofeev, Artyom"]
[WhiteFideId "1137590"]
[BlackFideId "4140419"]
[WhiteElo "2188"]
[BlackElo "2586"]
[Result "0-1"]
[Round "01"]
[TimeControl "180+2"]
[Date "2023.04.11"]
[WhiteClock "0:00:05"]
[BlackClock "0:01:15"]

1. e4 {[%clk 0:03:00]}  e5 {[%clk 0:02:57]} 2. Nf3 {[%clk 0:03:00]}  Nf6 {[%clk 0:02:56]} 3. Nc3 {[%clk 0:02:57]}  Nc6 {[%clk 0:02:54]} 4. d4 {[%clk 0:02:57]}  exd4 {[%clk 0:02:53]} 5. Nd5 {[%clk 0:02:58]}  Be7 {[%clk 0:02:48]} 6. Bc4 {[%clk 0:02:40]}  O-O {[%clk 0:02:45]} 7. O-O {[%clk 0:02:39]}  d6 {[%clk 0:02:39]} 8. Nxd4 {[%clk 0:02:04]}  Nxd4 {[%clk 0:02:38]} 9. Qxd4 {[%clk 0:02:04]}  Nxd5 {[%clk 0:02:38]} 10. Bxd5 {[%clk 0:02:04]}  Bf6 {[%clk 0:02:37]} 11. Qd3 {[%clk 0:02:03]}  Rb8 {[%clk 0:02:27]} 12. c3 {[%clk 0:02:02]}  Be6 {[%clk 0:02:24]} 13. Bd2 {[%clk 0:01:54]}  Re8 {[%clk 0:02:21]} 14. Rae1 {[%clk 0:01:53]}  c6 {[%clk 0:02:09]} 15. Bxe6 {[%clk 0:01:45]}  Rxe6 {[%clk 0:02:09]} 16. f4 {[%clk 0:01:42]}  h6 {[%clk 0:02:03]} 17. Kh1 {[%clk 0:01:34]}  Qb6 {[%clk 0:01:50]} 18. b4 {[%clk 0:01:22]}  Rbe8 {[%clk 0:01:46]} 19. f5 {[%clk 0:01:01]}  R6e7 {[%clk 0:01:45]} 20. Bf4 {[%clk 0:00:56]}  d5 {[%clk 0:01:42]} 21. Bd6 {[%clk 0:00:48]}  Rxe4 {[%clk 0:01:40]} 22. Rxe4 {[%clk 0:00:44]}  Rxe4 {[%clk 0:01:39]} 23. a4 {[%clk 0:00:41]}  Qd8 {[%clk 0:01:35]} 24. Bc5 {[%clk 0:00:34]}  b6 {[%clk 0:01:34]} 25. Bd4 {[%clk 0:00:33]}  Bxd4 {[%clk 0:01:34]} 26. cxd4 {[%clk 0:00:33]}  Qf6 {[%clk 0:01:34]} 27. Qg3 {[%clk 0:00:20]}  Rxd4 {[%clk 0:01:33]} 28. Qb8+ {[%clk 0:00:19]}  Kh7 {[%clk 0:01:32]} 29. Qxa7 {[%clk 0:00:13]}  Rxb4 {[%clk 0:01:32]} 30. a5 {[%clk 0:00:12]}  bxa5 {[%clk 0:01:31]} 31. Qxa5 {[%clk 0:00:13]}  Rc4 {[%clk 0:01:28]} 32. Qd2 {[%clk 0:00:11]}  d4 {[%clk 0:01:21]} 33. h3 {[%clk 0:00:07]}  c5 {[%clk 0:01:21]} 34. Qf4 {[%clk 0:00:06]}  Rc2 {[%clk 0:01:19]} 35. g4 {[%clk 0:00:06]}  Qc6+ {[%clk 0:01:17]} 36. Rf3 {[%clk 0:00:05]}  Rf2 {[%clk 0:01:15]} 0-1


[Site "https://www.chess.com"]